Cogmind - Beta 13 @@@ ROGUE MODE // 2024.08.05 @ 19:29:40 Player: btracker Result: Self-destructed Performance ------------- Evolutions (1) 500 Regions Visited (2) 400 Robots Destroyed (25) 125 Value Destroyed (581) 581 Prototype IDs (0) 0 Alien Tech Used (0) 0 Bonus (0) 0 TOTAL SCORE: 1606 Bonus ------- None Cogmind --------- Core Integrity 161/400 Matter 97/300 Energy 100/100 System Corruption 0% Temperature Cool (0) Movement Walking (120) Location -9/Materials Parts ------- > --- POWER (1) -------- (None) > --- PROPULSION (2) --- Improved Aluminum Leg > --- UTILITY (2) ------ Small Storage Unit Signal Interpreter > --- WEAPON (4) ------- (None) > --- INVENTORY (8) ---- Improved Targeting Computer Peak State ------------ > --- POWER ------------ Ion Engine > --- PROPULSION ------- Improved Aluminum Leg Improved Aluminum Leg > --- UTILITY ---------- Small Storage Unit Signal Interpreter > --- WEAPON ----------- Beam Rifle Beam Rifle Assault Rifle Rocket Launcher > --- INVENTORY -------- Light Ion Engine Improved Aluminum Leg Improved Aluminum Leg Beam Rifle Rocket Launcher Rocket Launcher [Rating: 15] Favorites ----------- Power Ion Engine Engine Ion Engine Propulsion Improved Aluminum Leg Leg Improved Aluminum Leg Utility Small Storage Unit Device ECM Suite Storage Small Storage Unit Processor Signal Interpreter Weapon Rocket Launcher Energy Gun Small Laser Ballistic Gun Assault Rifle Launcher Rocket Launcher Special Weapon Plasma Cutter Build | -11 -10 -9 ------- Run | Yrd Mat Mat Slots Evolved 2 | . . 2 Power . | . . . Propulsion . | . . . Utility . | . . . Weapon 2 | . . 2 Parts Attached 29 | 6 10 13 Power 2 | 1 . 1 Engine 2 | 1 . 1 Core . | . . . Reactor . | . . . Propulsion 7 | 2 2 3 Treads . | . . . Leg 7 | 2 2 3 Wheel . | . . . Hover . | . . . Flight . | . . . Utility 3 | 1 2 . Device 1 | . 1 . Storage 1 | 1 . . Processor 1 | . 1 . Hackware . | . . . Protection . | . . . Artifact . | . . . Weapon 17 | 2 6 9 Energy Gun 8 | 1 2 5 Energy Cannon . | . . . Ballistic Gun 3 | 1 2 . Ballistic Cannon . | . . . Launcher 5 | . 2 3 Special Weapon 1 | . . 1 Impact Weapon . | . . . Slashing Weapon . | . . . Piercing Weapon . | . . . Special Melee Weapon . | . . . Unidentified Prototypes . | . . . Parts Lost 11 | . . 11 Power 2 | . . 2 Propulsion 3 | . . 3 Utility . | . . . Weapon 6 | . . 6 Highest Loss Streak 6 | . . 6 To Critical Strikes . | . . . Average Slot Usage (%) 92 | . 100 81 Engine 10 | . 14 6 Leg 22 | . 28 15 Device 3 | . 5 . Storage 12 | . 14 11 Processor 9 | . 8 11 Energy Gun 13 | . 12 14 Ballistic Gun 9 | . 10 6 Launcher 8 | . 4 13 Naked Turns . | . . . Heaviest Build 22 | 12 17 22 Greatest Support 26 | 20 26 26 Greatest Overweight (x) 4 | . . 4 Average Overweight (x) . | . . . Largest Inventory Capacity 8 | 8 8 8 Average Capacity 7 | 6 8 8 Most Carried 8 | 6 8 8 Average Carried 5 | 3 7 4 Final Capacity 8 | 8 8 8 Final Carried 8 | 6 8 1 Class Distribution -------------------- 60% | Mutant 36% | Gunner 3% | Bomber Dominant Class ---------------- Mutant | -10/Materials Gunner | -9/Materials Resources | -11 -10 -9 ----------- Run | Yrd Mat Mat Matter Collected 549 | 246 123 180 Remotely . | . . . Salvage Created 816 | 27 272 517 Parts 36 | 1 15 20 Haulers Intercepted 3 | . 1 2 Recyclers Shooed 1 | . . 1 Parts Field Recycled . | . . . Retrieved Matter . | . . . Parts Self-Destructed . | . . . Prevented . | . . . Kills | -11 -10 -9 ------- Run | Yrd Mat Mat Combat Hostiles Destroyed 13 | . 5 8 Guns 5 | . 2 3 AOE 8 | . 3 5 Classes Destroyed 11 | 1 5 5 Worker 2 | . 1 1 Builder 2 | . 1 1 Tunneler 1 | 1 . . Hauler 3 | . 1 2 Recycler 1 | . . 1 Mechanic 1 | . . 1 Watcher 2 | . 1 1 Grunt 9 | . 5 4 Brawler 1 | . . 1 Duelist 1 | . . 1 Sentry 2 | . . 2 Best Kill Streak 9 | 1 4 9 Combat Bots Only 5 | . 3 5 Max Kills in Single Turn 3 | 1 2 3 Gunslinging . | . . . Exploded 3 | . 1 3 Melee . | . . . Uniques/NPCs Destroyed . | . . . Combat | -11 -10 -9 -------- Run | Yrd Mat Mat Hostile Shots Fired 80 | . 29 51 Missed 15 | . 8 7 Damage Taken 1242 | . 336 906 Core 304 | . 65 239 Absorbed by Shields . | . . . Core Remaining (%) 87 | 100 74 . Volleys Fired 44 | 1 26 17 Largest 4 | 2 2 4 Hottest 166 | 60 112 166 Shots Fired 85 | 2 43 40 Gun 62 | 2 36 24 Cannon . | . . . Launcher 18 | . 7 11 Special 5 | . . 5 Kinetic 25 | 1 16 8 Thermal 28 | 1 20 7 Explosive 18 | . 7 11 Electromagnetic 14 | . . 14 Robot Hit Streak 9 | . 4 9 Robot Miss Streak 4 | . 4 2 Penetration Max . | . . . Secondary Targets . | . . . Shots Hit Robots 47 | . 22 25 Core Hits 41 | 1 16 24 Critical Kills . | . . . Critical Parts Destroyed . | . . . Critical Strikes . | . . . Melee Attacks . | . . . Impact . | . . . Slashing . | . . . Piercing . | . . . Sneak Attacks . | . . . Combat Hostiles . | . . . Follow-up Attacks . | . . . Damage Inflicted 1948 | 12 629 1307 Guns 532 | 12 258 262 Cannons . | . . . Explosions 1374 | . 371 1003 Melee . | . . . Ramming . | . . . Kinetic 182 | . 118 64 Thermal 399 | 12 140 247 Explosive 1198 | . 371 827 Electromagnetic 169 | . . 169 Impact . | . . . Slashing . | . . . Piercing . | . . . Highest Corruption . | . . . Average Corruption . | . . . Corruption Purged . | . . . Corruption Blocked . | . . . Overload Shots . | . . . Overflow Damage 56 | . 3 53 Projectiles . | . . . Explosions 56 | . 3 53 Melee . | . . . Knockbacks . | . . . Impact . | . . . Kinetic . | . . . Secondary . | . . . Self-Inflicted Damage 269 | . 80 189 Shots 9 | . 4 5 Rammed . | . . . Targets Rammed . | . . . Kicked . | . . . Crushed . | . . . Highest Temperature 464 | 20 464 250 Average Temperature 161 | 15 213 88 Received Heat Transfer 345 | . 153 192 Effects 4 | . 3 1 Shutdowns 1 | . 1 . Energy Bleed 1 | . . 1 Matter Decay 2 | . 2 . Siege Activations . | . . . Robots Corrupted . | . . . Combat Hostiles . | . . . Parts Fried 1 | . . 1 Impact Corruptions . | . . . Robots Melted . | . . . Combat Hostiles . | . . . Parts Melted 1 | . 1 . Heat Transferred 855 | 25 358 472 Parts Sabotaged . | . . . Parts Stolen . | . . . Parts Stripped . | . . . Power Chain Reactions 1 | . . 1 Alert | -11 -10 -9 ------- Run | Yrd Mat Mat Peak Influence 348 | 5 189 348 Initial 79 | . 3 79 Average 104 | 1 57 211 Maximum Alert Level 1 | . . 1 Low Security (%) 79 | 100 100 43 Level 1 20 | . . 56 Level 2 . | . . . Level 3 . | . . . Level 4 . | . . . Level 5 . | . . . High Security . | . . . Max Security . | . . . Squads Dispatched . | . . . Investigation . | . . . Extermination . | . . . Reinforcement . | . . . Assault . | . . . Garrison . | . . . Intercept . | . . . Searches Triggered . | . . . Construction Impeded . | . . . Haulers Reinforced . | . . . Active Scanning Responses . | . . . Cargo Convoy Interrupts . | . . . Stealth | -11 -10 -9 --------- Run | Yrd Mat Mat Distress Signals . | . . . Communications Jammed . | . . . Distress Signals . | . . . Times Spotted 17 | . 6 11 Peak Tracking Total 5 | . 2 5 Tactical Retreats . | . . . Traps | -11 -10 -9 ------- Run | Yrd Mat Mat Traps Triggered . | . . . Indirectly . | . . . Trap Hack Attempts . | . . . Triggered . | . . . Disarmed . | . . . Reprogrammed . | . . . Reused . | . . . Traps Extracted . | . . . Installed . | . . . Triggered . | . . . Machines | -11 -10 -9 ---------- Run | Yrd Mat Mat Machines Disabled . | . . . Max in Single Turn . | . . . Machines Repaired . | . . . Machines Dismantled . | . . . Machines Sabotaged . | . . . Overloaded Fab Kills . | . . . Hacking | -11 -10 -9 --------- Run | Yrd Mat Mat Machines Accessed . | . . . Terminals . | . . . Fabricators . | . . . Repair Stations . | . . . Recycling Units . | . . . Scanalyzers . | . . . Garrison Access . | . . . Total Hacks . | . . . Successful . | . . . Failed . | . . . Catastrophic . | . . . Database Lockouts . | . . . Manual . | . . . Terminals . | . . . Fabricators . | . . . Repair Stations . | . . . Recycling Units . | . . . Scanalyzers . | . . . Garrison Access . | . . . Terminal Hacks . | . . . Fabricator Hacks . | . . . Repair Station Hacks . | . . . Recycling Unit Hacks . | . . . Scanalyzer . | . . . Garrison Access Hacks . | . . . Unauthorized Hacks . | . . . Terminals . | . . . Fabricators . | . . . Repair Stations . | . . . Recycling Units . | . . . Scanalyzers . | . . . Garrison Access . | . . . Data Cores Recovered . | . . . Used . | . . . Hacking Detections . | . . . Full Trace Events . | . . . Feedback Events . | . . . Feedback Blocked . | . . . Robot Schematics Acquired . | . . . Robots Built . | . . . Authchips . | . . . Time . | . . . Total Robot Build Rating . | . . . Part Schematics Acquired . | . . . Parts Built . | . . . Authchips . | . . . Time . | . . . Total Part Build Rating . | . . . Parts Repaired . | . . . Time . | . . . Parts Recycled . | . . . Recycled Matter . | . . . Retrieved Matter . | . . . Retrieved Components . | . . . Parts Scanalyzed . | . . . Part Schematics Acquired . | . . . Parts Damaged . | . . . Bothacking | -11 -10 -9 ------------ Run | Yrd Mat Mat Used RIF Installer . | . . . Robots Hacked . | . . . Non-combat . | . . . Combat . | . . . Robot Hacks Applied . | . . . Relay Couplers Released . | . . . Fabnet Peak Effective % . | . . . Robots Rewired . | . . . Allies Hacked . | . . . Hacks Repelled . | . . . Allies | -11 -10 -9 -------- Run | Yrd Mat Mat Total Allies . | . . . Largest Group . | . . . Highest-Rated Group . | . . . Highest-Rated Ally . | . . . Total Orders . | . . . Ally Attacks . | . . . Total Damage . | . . . Kills . | . . . Allies Corrupted . | . . . Allies Melted . | . . . Intel | -11 -10 -9 ------- Run | Yrd Mat Mat Robot Analysis Total . | . . . Derelict Logs Recovered . | . . . Drone Launches . | . . . Drone Recoveries . | . . . Exploration | -11 -10 -9 ------------- Run | Yrd Mat Mat Turns Passed 547 | 79 270 198 Spaces Moved 272 | 59 139 74 Core 13 | 12 . 1 Treads . | . . . Legs 259 | 47 139 73 Wheels . | . . . Hover . | . . . Flight . | . . . Fastest Speed 50 | 50 120 120 Average Speed 121 | 105 120 136 Slowest Speed 250 | 120 120 250 Overloaded Moves . | . . . Propulsion Burnouts . | . . . Robots Hopped . | . . . Cave-ins Triggered . | . . . Exploration Rate (%) 15 | 4 24 17 Regions Visited 2 Branch Regions . Pre-discovered Areas . | . . . Known Exits Taken 1 | . 1 . Unknown Exits Taken 1 | 1 . . Scrap Searched . | . . . Spaces Dug . | . . . Terrain Destroyed 129 | . 51 78 Melee . | . . . Projectile . | . . . AOE 129 | . 51 78 Terrain Rammed . | . . . Walls Destroyed . | . . . Machines Disabled . | . . . Actions | -11 -10 -9 --------- Run | Yrd Mat Mat Total 408 | 71 203 134 Wait 28 | . 4 24 Move 270 | 58 138 74 Hop . | . . . Pick Up 20 | 6 11 3 Fast Attach 11 | 6 2 3 Attach 9 | . . 9 Detach . | . . . Swap 9 | . 8 1 Drop 17 | . 14 3 Fire 44 | 1 26 17 Melee . | . . . Ram . | . . . Kick . | . . . Crush . | . . . Escape Stasis . | . . . Rewire . | . . . Trap . | . . . Miscellaneous . | . . . Route ------- -11/Scrapyard -10/Materials -9/Materials History --------- Turn | Location | Event 7 | -11/Scrapyard | Discovered new exit (range 16) 80 | -11/Scrapyard | Entered Materials 180 | -10/Materials | Discovered new exit (range 14) 246 | -10/Materials | Identified exit to Materials 303 | -10/Materials | Build established: Mutant 350 | -10/Materials | Entered another Materials area 350 | -9/Materials | Evolved 2 slots: Weapon x2 479 | -9/Materials | Core integrity fell below 50% 507 | -9/Materials | Lost 6 parts (2p1n3w) 548 | -9/Materials | Self-destructed Last Messages --------------- 00507_ U-05 Engineer lays Concrete. 00509_ U-05 Engineer builds a Wall. 00509_ U-05 Engineer lays Concrete. 00514_ U-05 Engineer builds a Wall. 00514_ U-05 Engineer lays Concrete. 00518_ R-06 Scavenger collects Corrupted Lgt. Treads. 00523_ R-06 Scavenger collects Rnf. Ion Engine. 00528_ R-06 Scavenger collects Ion Engine. 00531_ U-05 Engineer lays Concrete. 00541_ Rocket Launcher destroyed. 00542_ U-05 Engineer lays Concrete. 00543_ U-05 Engineer builds a Wall. 00544_ U-05 Engineer lays Concrete. 00544_ Plasma Cutter destroyed. 00544_ U-05 Engineer destroyed. 00546_ Rocket Launcher destroyed. 00546_ Destroyed Rocket Launcher. 00547_ Aluminum Leg destroyed. 00547_ U-05 Engineer lays Concrete. Map ----- +----------------------------------------------------+ | ???????# ????? | | ???????+ ????? | | ???????? ????? | | ????????## ############ ############ ?????? | | ?????????#??????????###+###########????????? | | ????????????????????# #????????? | | ????????????????????# #????????? | | ????????????????????# """ """ """ #????????? | | ????????????????????# """ """ """ #????????? | | ????????????????????# """ """ """ +???== ??? | | ????????????????????# #?? ??? | | ??????????????? ??###### ###### ?? | | ???????????????? ?????# = ### =] ? | | ???????????????? ?????# "%! !] ? | | ???????????????? ?????# "T ^ ? | | ???????????????? ?????# ? | | ????????????????# ?????# ##### ##??? | | ????????????????# ?###### ###????#####???? | | ???????????????## ##] # % #????????????? | | ????????######## # ""# #????????????? | | ????????? + Y" ##????????????? | | ??????????# ^ # ""# # #????????????? | | ??????????# ##???????????? | | ??????????#!!! ### #???????????? | | ??????????#!!! Y ## # ##???????????? | | ??????????#!! @ u ###??????????? | | ??????????# # #???????? | | ??????????# ! # #???????? | | ??????? + a % # #??????? | | ??????"" # ###### ### %; #??????? | | ???????"?????????###### # # #??????? | | ?????????????????????? # # #??????? | | ????????????????????? #= ### #??????? | | ?????????????????????"" #% ##?# ###??????? | | ????????????????????""" #???###????????? | | ??????????????????????" # #??????????????? | | ?????????????????????? # #??????????????? | | ?????????????????????? # #??????????????? | | ??????????????????????? # #??????????????? | | ????????????????????????? #??????????????? | | ????????????????????????? #??????????????? | | ???????????????????????????????????????????? | | ???????????????????????????????????????????? | | ???????????????????????????????????????????? | | ???????????????????????????????????????????? | | ???????????????????????????????????????????? | | ???????????????????????????????????????????? | | ???????????????????????????????????????????? | | ???????????????????????????????????????????? | | ???????????????????????????????????????????? | +----------------------------------------------------+ Best States ------------- Heat Dissipation 28 Energy Generation 10 Energy Capacity 250 Matter Stores 285 Matter Capacity 300 Sight Range 16 Terrain Scan Density 10 ECM Strength 1 Evasion (%) 55 Item Schematics ----------------- None Robot Schematics ------------------ None Fabricated ------------ Nothing Alien Tech Used ----------------- None Achievements -------------- None Challenges ------------ None Game ------ Seed BiomechanicalBoreThrower Manual? 0 Play Time 00:06:41 Cumulative 15.0 hours Start 2024.08.05 @ 19:23:04 End 2024.08.05 @ 19:29:40 Sessions 1 Manual Loads 0 Difficulty Rogue Special Mode None Game No. 41 Rogue 41 Adventurer 0 Explorer 0 Win Type - Total 0 Types 0/0/0/0/0/0/0/0/0 Lore% 8 Gallery% 23 Achievement% 18 Wizard Run 0 Options --------- Layout 1 ASCII 0 Keyboard 0 Movement Mouse Keybinds 0 Fullscreen 1 Font 24/Smallcaps Map View 50x35 Zoom Use 0% Tactical HUD 1 Map Filters NONE Filters NONE Steam 1 RUN: 8ff95680-4032-4f3c-ba1c-88f24b07365f